[Event "FIDE Women GP Cyprus 2025"]
[Site "Nicosia"]
[Date "2025.03.18"]
[Round "4.5"]
[White "Muzychuk, Anna"]
[Black "Divya Deshmukh"]
[Result "1-0"]
[Annotator "TA"]
[ECO "B12"]
[WhiteElo "2516"]
[BlackElo "2470"]
[PlyCount "131"]
[EventDate "2025.03.10"]
[EventType "tourn"]
[EventCountry "CYP"]
[SourceTitle "playchess.com"]
[Source "ChessBase"]
[SourceQuality "1"]
[TimeControl "40/5400+30:1800+30"]

{[%evp 9,131,5,18,8,28,14,5,0,16,0,0,2,-5,-5,0,0,0,0,0,0,0,0,-14,-9,-11,0,0,-6,-6,-18,-19,-20,20,0,25,36,45,37,46,0,88,78,171,90,178,157,231,202,195,199,200,193,200,202,287,265,288,280,420,433,402,290,249,255,267,248,304,307,416,406,436,436,411,359,325,325,317,272,334,276,368,352,1007,895,564,509,4739,3333,1647,1562,29965,29968,29958,29956,29954,29959,29965,29966,29965,29968,29969,29969,29970,29971,29973,29974,29974,29975,29975,29976,29976,29977,29977,29978,29977,29978,29978,29979,29979,29979,29979,29980,29978,29979]} 1. e4 {[%emt 0:00:03]} c6 {[%emt 0:00:14]} 2. d4 {[%emt 0:00:43]} d5 {[%emt 0:00:05]} 3. e5 {[%emt 0:00:05]} Bf5 {[%emt 0:00:08]} 4. h4 {[%emt 0:00:24]} h5 {[%emt 0:00:16]} 5. Bd3 {[%emt 0:00:26]} Bxd3 {[%emt 0:00:14]} 6. Qxd3 {[%emt 0:00:02][%cal Oe5e6] B12: Caro-Kann: Advance Variation.} Qa5+ {[%emt 0:00:13] is now more promising than 6...e6.} 7. Nd2 {[%emt 0:00:29][%cal Oe5e6]} e6 {[%emt 0:00:39]} 8. Ngf3 {[%emt 0:00:22] The position is equal.} Qa6 {[%emt 0:01:56]} 9. c4 {[%emt 0:00:47]} Bb4 {[%emt 0:00:13]} 10. O-O {[%emt 0:00:16]} Ne7 {[%emt 0:05:50]} 11. Rd1 {[%emt 0:01:12][%cal Bf1d1,Bd1d3,Bd3a3,Ba3a6][%mdl 32]} c5 {[%emt 0:03:03]} 12. Qc2 $146 {[%emt 0:17:55]} (12. Qb1 Nbc6 13. cxd5 Nxd5 14. Ne4 cxd4 15. a3 Be7 16. Bg5 O-O 17. Bxe7 Ndxe7 18. b4 {1-0 Martinez Alcantara,J (2591)-Khanin,S (2550) Titled Tuesday intern op 12th Jul Late blitz 2022 (4)}) 12... cxd4 {[%emt 0:00:28]} 13. cxd5 {[%emt 0:04:31]} d3 {[%emt 0:08:36]} 14. Qc4 {[%emt 0:13:25]} Qxc4 {[%emt 0:18:41]} 15. Nxc4 {[%emt 0:00:11] A sharp opening} Nxd5 {[%emt 0:03:02]} 16. Rxd3 {[%emt 0:00:13]} Nc6 {[%emt 0:03:43]} 17. Bg5 {[%emt 0:06:03]} f6 {[%emt 0:02:49]} 18. Bd2 {[%emt 0:03:08]} b5 {[%emt 0:01:42]} 19. Na3 {[%emt 0:00:00]} Bxa3 {[%emt 0:03:43]} 20. Rxa3 {[%emt 0:11:32]} Ke7 {[%emt 0:05:59][%cal Be8e7,Be7d7,Bd7e6][%mdl 32]} 21. Rc1 {[%emt 0:00:00]} Rhc8 22. exf6+ $1 {[%emt 0:08:09]} gxf6 {[%emt 0:02:01]} 23. Ra6 {[%emt 0:00:11]} Kd7 {[%emt 0:04:27]} 24. Ne1 {[%emt 0:00:00]} (24. Rc5 $14) 24... Nb6 {[%emt 0:17:27]} (24... Ndb4 $11 {keeps the balance.} 25. Ra3 (25. Bxb4 Nxb4 26. Rxc8 Rxc8 $16) 25... a6) 25. Nd3 $16 {[%emt 0:00:00] White is more active. White stays focused until the end.} Nc4 {[%emt 0:00:15]} (25... Nb8 $16 26. Rxc8 Kxc8) 26. Be3 {[%emt 0:14:50]} ({White should play} 26. Nf4 $1 $18) 26... Rc7 {[%emt 0:10:33]} (26... Nb8 $16 27. Rxa7+ Rxa7 28. Bxa7 Nc6) 27. Nf4 $18 {[%emt 0:10:30]} Nxb2 {[%emt 0:03:59] [#]} (27... Nxe3 $16 28. fxe3 Rac8 29. Nxh5 Nb4 30. Rxc7+ (30. Nxf6+ Ke7 $11) 30... Rxc7) 28. Nxe6 $1 {[%emt 0:00:00][%mdl 512]} Kxe6 {[%emt 0:01:41]} 29. Rcxc6+ {[%emt 0:00:00] White attacks} (29. Raxc6+ Rxc6 30. Rxc6+ Kf5 31. Rc5+ Kg6 32. Rxb5 Nc4 $18) 29... Rxc6 {[%emt 0:00:03]} 30. Rxc6+ $16 {[%emt 0:00:00][%mdl 4096] Endgame KRB-KRN} Kf5 {[%emt 0:13:13] [#]} 31. Bd4 $1 {[%emt 0:00:00][%csl LRb2,LRf6]} Nd3 {[%emt 0:02:39]} (31... Nc4 32. Bxf6 (32. Rxf6+ Ke4 $18) 32... Re8) 32. Rxf6+ $18 {[%emt 0:00:45]} (32. Bxf6 $6 Nb4 33. Rd6 Re8 $18) 32... Ke4 {[%emt 0:00:00]} 33. Rd6 {[%emt 0:02:00]} Nb4 {[%emt 0:00:00]} (33... Nf4 {is a better defense.}) 34. f3+ {[%emt 0:01:14]} Kd3 {[%emt 0:00:00]} 35. Bc5+ {[%emt 0:06:11]} ({Weaker is} 35. Bxa7+ Kc2 $18) 35... Kc4 {[%emt 0:00:00] [#]} 36. Bxb4 {[%emt 0:00:04]} Kxb4 {[%emt 0:00:00] KR-KR. White is a pawn up.} 37. Ra6 {[%emt 0:00:06]} Rf8 {[%emt 0:00:00]} 38. Rxa7 {[%emt 0:02:19]} Rf4 {[%emt 0:00:00]} 39. Rh7 {[%emt 0:01:11]} Rxh4 {[%emt 0:00:00]} 40. g3 {[%emt 0:00:29]} Rd4 {[%emt 0:00:00]} 41. Rxh5 {[%emt 0:30:13]} Rd1+ {[%emt 0:00:00]} 42. Kf2 {[%emt 0:00:00]} Rd2+ {[%emt 0:00:09]} 43. Ke3 {[%emt 0:00:00]} Rxa2 {[%emt 0:00:00]} 44. g4 {[%emt 0:00:00]} Rg2 {[%emt 0:01:43]} 45. Rh8 {[%emt 0:00:00]} Kb3 $2 {[%emt 0:01:59]} (45... Kc5 46. Rc8+ Kd5) 46. Kf4 {[%emt 0:04:14]} b4 {[%emt 0:02:35][%cal Bb5b4,Bb4b3][%mdl 32]} 47. Kg5 {[%emt 0:00:00]} Kc3 {[%emt 0:00:00]} (47... Kc4 $142 48. f4 b3 49. Rc8+ Kd5) 48. Rc8+ {[%emt 0:00:00]} Kd3 {[%emt 0:09:57]} 49. Rb8 {[%emt 0:00:00][%cal Of3f4] And now f4! would win.} Kc4 {[%emt 0:08:10]} 50. f4 {[%emt 0:00:00][%cal Bf3f4,Bf4f5][%mdl 32] White mates.} b3 {[%emt 0:00:05]} 51. f5 {[%emt 0:00:00]} b2 {[%emt 0:00:13]} 52. f6 {[%emt 0:00:00]} Kd5 {[%emt 0:01:48]} 53. f7 {[%emt 0:00:00]} Rf2 {[%emt 0:00:09] [#]} 54. Rxb2 $3 {[%emt 0:00:00][%mdl 512]} Rxf7 {[%emt 0:00:02]} 55. Kg6 {[%emt 0:00:00]} Rf1 {[%emt 0:01:39]} 56. Re2 {[%emt 0:00:00]} Kd6 {[%emt 0:01:21]} 57. g5 {[%emt 0:00:00][%cal Bg4g5,Bg5g6,Bg6g7][%mdl 32]} Rg1 {[%emt 0:00:03]} 58. Kf6 {[%emt 0:00:00]} Rf1+ {[%emt 0:00:04]} 59. Kg7 {[%emt 0:00:00]} Rg1 {[%emt 0:00:27]} 60. g6 {[%emt 0:00:00]} Kd7 {[%emt 0:01:35]} 61. Kf7 {[%emt 0:00:00]} Rf1+ {[%emt 0:00:04]} 62. Kg8 {[%emt 0:00:00]} Rg1 {[%emt 0:00:49]} 63. g7 {[%emt 0:00:00]} Rh1 {[%emt 0:00:33]} 64. Re4 {[%emt 0:00:00]} Kd6 {[%emt 0:00:41]} 65. Kf7 {[%emt 0:00:37]} Rf1+ {[%emt 0:00:05]} 66. Kg6 {[%emt 0:00:00] Weighted Error Value: White=0.07 (flawless) /Black=0.41  Mistake:       	White=2     	Black=7      Inaccurate:     	---       	Black=2      OK:         	White=18    	Black=16     Best:        	White=7     	Black=4      Strong:       	White=1     	---} 1-0